[Event "Titled Tuesday Blitz December 06 Late 2022"]
[White "Makridis, Dimitrios"]
[Black "Dimitrov, Atanas"]
[WhiteFideId "25864475"]
[BlackFideId "2901315"]
[WhiteElo "2272"]
[BlackElo "2614"]
[Result "1-0"]
[Round "05"]
[TimeControl "180+1"]
[Date "2022.12.06"]
[WhiteClock "0:00:09"]
[BlackClock "0:00:05"]

1. e4 {[%clk 0:03:00]}  c5 {[%clk 0:02:59]} 2. Nf3 {[%clk 0:02:58]}  d6 {[%clk 0:02:59]} 3. d4 {[%clk 0:02:58]}  cxd4 {[%clk 0:03:00]} 4. Nxd4 {[%clk 0:02:59]}  Nf6 {[%clk 0:03:01]} 5. Nc3 {[%clk 0:03:00]}  g6 {[%clk 0:03:01]} 6. Be3 {[%clk 0:02:55]}  Bg7 {[%clk 0:03:01]} 7. f3 {[%clk 0:02:53]}  O-O {[%clk 0:03:02]} 8. Qd2 {[%clk 0:02:53]}  Nc6 {[%clk 0:03:02]} 9. O-O-O {[%clk 0:02:52]}  Bd7 {[%clk 0:03:03]} 10. h4 {[%clk 0:02:50]}  h5 {[%clk 0:03:02]} 11. Kb1 {[%clk 0:02:49]}  Ne5 {[%clk 0:03:02]} 12. Bh6 {[%clk 0:02:43]}  Rc8 {[%clk 0:03:01]} 13. g4 {[%clk 0:02:40]}  Nc4 {[%clk 0:02:49]} 14. Bxc4 {[%clk 0:02:37]}  Rxc4 {[%clk 0:02:50]} 15. Bxg7 {[%clk 0:02:32]}  Kxg7 {[%clk 0:02:51]} 16. g5 {[%clk 0:02:21]}  Ne8 {[%clk 0:02:50]} 17. f4 {[%clk 0:02:20]}  Bg4 {[%clk 0:02:35]} 18. Rdf1 {[%clk 0:02:12]}  Qb6 {[%clk 0:02:25]} 19. Nb3 {[%clk 0:02:05]}  e6 {[%clk 0:02:11]} 20. Qd3 {[%clk 0:01:36]}  Rc8 {[%clk 0:01:52]} 21. Nd4 {[%clk 0:01:32]}  Nc7 {[%clk 0:01:43]} 22. f5 {[%clk 0:01:30]}  e5 {[%clk 0:01:43]} 23. Nb3 {[%clk 0:01:24]}  Rcd8 {[%clk 0:01:30]} 24. Rh2 {[%clk 0:01:11]}  d5 {[%clk 0:01:08]} 25. f6+ {[%clk 0:00:56]}  Kg8 {[%clk 0:01:07]} 26. exd5 {[%clk 0:00:57]}  Ne6 {[%clk 0:01:01]} 27. Qe4 {[%clk 0:00:42]}  Nd4 {[%clk 0:00:58]} 28. Qxe5 {[%clk 0:00:42]}  Nf3 {[%clk 0:00:57]} 29. Qf4 {[%clk 0:00:37]}  Nxh2 {[%clk 0:00:56]} 30. Qxh2 {[%clk 0:00:37]}  Rfe8 {[%clk 0:00:52]} 31. a3 {[%clk 0:00:37]}  Qe3 {[%clk 0:00:44]} 32. Ka2 {[%clk 0:00:31]}  a6 {[%clk 0:00:40]} 33. Rf2 {[%clk 0:00:24]}  Rc8 {[%clk 0:00:38]} 34. d6 {[%clk 0:00:20]}  Rxc3 {[%clk 0:00:34]} 35. bxc3 {[%clk 0:00:21]}  Qxc3 {[%clk 0:00:35]} 36. Qf4 {[%clk 0:00:20]}  Be6 {[%clk 0:00:22]} 37. Qd2 {[%clk 0:00:19]}  Qg3 {[%clk 0:00:18]} 38. Rf1 {[%clk 0:00:18]}  Rd8 {[%clk 0:00:17]} 39. Rd1 {[%clk 0:00:18]}  Qxh4 {[%clk 0:00:18]} 40. Kb1 {[%clk 0:00:17]}  Qc4 {[%clk 0:00:15]} 41. Qb4 {[%clk 0:00:14]}  Qc6 {[%clk 0:00:12]} 42. Na5 {[%clk 0:00:11]}  Qf3 {[%clk 0:00:10]} 43. Rd3 {[%clk 0:00:12]}  Qf1+ {[%clk 0:00:10]} 44. Kb2 {[%clk 0:00:12]}  b5 {[%clk 0:00:09]} 45. Nc6 {[%clk 0:00:11]}  Rd7 {[%clk 0:00:08]} 46. Ne7+ {[%clk 0:00:11]}  Kh7 {[%clk 0:00:09]} 47. Qc5 {[%clk 0:00:11]}  Qf5 {[%clk 0:00:05]} 48. Nxf5 {[%clk 0:00:11]}  Bxf5 {[%clk 0:00:05]} 49. Re3 {[%clk 0:00:11]}  Rd8 {[%clk 0:00:04]} 50. Re7 {[%clk 0:00:11]}  Kg8 {[%clk 0:00:04]} 51. Rxf7 {[%clk 0:00:09]}  Rf8 {[%clk 0:00:05]} 52. Rg7+ {[%clk 0:00:09]} 1-0


[Site "https://www.chess.com"]

[Event "Titled Tuesday Blitz December 06 Late 2022"]
[White "Manukyan, Sargis A."]
[Black "Tanenbaum, Zachary"]
[WhiteFideId "13303970"]
[BlackFideId "2060850"]
[WhiteElo "2187"]
[BlackElo "2175"]
[Result "0-1"]
[Round "05"]
[TimeControl "180+1"]
[Date "2022.12.07"]
[WhiteClock "0:00:01"]
[BlackClock "0:00:07"]

1. d4 {[%clk 0:02:59]}  d5 {[%clk 0:02:59]} 2. c4 {[%clk 0:02:59]}  dxc4 {[%clk 0:03:00]} 3. e4 {[%clk 0:02:59]}  b5 {[%clk 0:03:00]} 4. a4 {[%clk 0:02:56]}  c6 {[%clk 0:02:59]} 5. Na3 {[%clk 0:02:51]}  a6 {[%clk 0:02:56]} 6. d5 {[%clk 0:02:44]}  cxd5 {[%clk 0:02:44]} 7. axb5 {[%clk 0:02:43]}  axb5 {[%clk 0:02:43]} 8. Qxd5 {[%clk 0:02:38]}  Qxd5 {[%clk 0:02:42]} 9. exd5 {[%clk 0:02:39]}  Bb7 {[%clk 0:02:41]} 10. Rb1 {[%clk 0:02:29]}  Ba6 {[%clk 0:02:17]} 11. b3 {[%clk 0:02:26]}  Nf6 {[%clk 0:02:04]} 12. bxc4 {[%clk 0:02:25]}  bxc4 {[%clk 0:02:04]} 13. Nxc4 {[%clk 0:02:18]}  Nxd5 {[%clk 0:02:02]} 14. Nf3 {[%clk 0:02:15]}  e6 {[%clk 0:01:59]} 15. Ne3 {[%clk 0:02:11]}  Bb4+ {[%clk 0:01:47]} 16. Bd2 {[%clk 0:02:11]}  Nxe3 {[%clk 0:01:46]} 17. fxe3 {[%clk 0:02:03]}  Bxf1 {[%clk 0:01:43]} 18. Rxf1 {[%clk 0:02:03]}  Bxd2+ {[%clk 0:01:43]} 19. Nxd2 {[%clk 0:02:03]}  O-O {[%clk 0:01:41]} 20. Ke2 {[%clk 0:01:54]}  Nc6 {[%clk 0:01:40]} 21. Rb2 {[%clk 0:01:51]}  Ne5 {[%clk 0:01:39]} 22. Nf3 {[%clk 0:01:50]}  Nc4 {[%clk 0:01:37]} 23. Rc2 {[%clk 0:01:50]}  Nd6 {[%clk 0:01:31]} 24. Nd4 {[%clk 0:01:48]}  h6 {[%clk 0:01:26]} 25. Kf3 {[%clk 0:01:43]}  Rfc8 {[%clk 0:01:25]} 26. Rfc1 {[%clk 0:01:41]}  Rxc2 {[%clk 0:01:21]} 27. Rxc2 {[%clk 0:01:42]}  Rc8 {[%clk 0:01:10]} 28. Ra2 {[%clk 0:01:38]}  Rc3 {[%clk 0:01:08]} 29. Ke2 {[%clk 0:01:29]}  Nc4 {[%clk 0:01:05]} 30. Nc2 {[%clk 0:01:23]}  Kh7 {[%clk 0:01:03]} 31. e4 {[%clk 0:01:17]}  Nd6 {[%clk 0:00:59]} 32. e5 {[%clk 0:01:12]}  Nc4 {[%clk 0:00:58]} 33. Nd4 {[%clk 0:01:05]}  Nxe5 {[%clk 0:00:53]} 34. Ra5 {[%clk 0:01:06]}  Re3+ {[%clk 0:00:49]} 35. Kxe3 {[%clk 0:00:51]}  Nc4+ {[%clk 0:00:49]} 36. Kd3 {[%clk 0:00:52]}  Nxa5 {[%clk 0:00:50]} 37. Kc3 {[%clk 0:00:52]}  Kg6 {[%clk 0:00:49]} 38. Kb4 {[%clk 0:00:51]}  Nb7 {[%clk 0:00:49]} 39. Nb5 {[%clk 0:00:51]}  f5 {[%clk 0:00:44]} 40. Kc4 {[%clk 0:00:51]}  Kf6 {[%clk 0:00:43]} 41. Kd4 {[%clk 0:00:51]}  g5 {[%clk 0:00:42]} 42. g3 {[%clk 0:00:50]}  Nd8 {[%clk 0:00:39]} 43. Kc5 {[%clk 0:00:49]}  Nf7 {[%clk 0:00:38]} 44. Kd4 {[%clk 0:00:48]}  Ne5 {[%clk 0:00:37]} 45. h3 {[%clk 0:00:43]}  h5 {[%clk 0:00:31]} 46. Nd6 {[%clk 0:00:38]}  Ng6 {[%clk 0:00:24]} 47. Ne8+ {[%clk 0:00:35]}  Kf7 {[%clk 0:00:24]} 48. Nd6+ {[%clk 0:00:35]}  Ke7 {[%clk 0:00:25]} 49. Nc4 {[%clk 0:00:35]}  h4 {[%clk 0:00:25]} 50. gxh4 {[%clk 0:00:31]}  Nxh4 {[%clk 0:00:25]} 51. Ne5 {[%clk 0:00:31]}  Ng2 {[%clk 0:00:23]} 52. Nf3 {[%clk 0:00:28]}  Kf6 {[%clk 0:00:22]} 53. Ng1 {[%clk 0:00:13]}  e5+ {[%clk 0:00:19]} 54. Kd3 {[%clk 0:00:14]}  Nf4+ {[%clk 0:00:19]} 55. Ke3 {[%clk 0:00:15]}  e4 {[%clk 0:00:19]} 56. Kf2 {[%clk 0:00:15]}  Ke5 {[%clk 0:00:18]} 57. Ke3 {[%clk 0:00:14]}  Nd5+ {[%clk 0:00:18]} 58. Kf2 {[%clk 0:00:14]}  Nc3 {[%clk 0:00:18]} 59. Kg3 {[%clk 0:00:14]}  e3 {[%clk 0:00:16]} 60. Nf3+ {[%clk 0:00:14]}  Kf6 {[%clk 0:00:15]} 61. h4 {[%clk 0:00:14]}  gxh4+ {[%clk 0:00:14]} 62. Nxh4 {[%clk 0:00:15]}  Ke5 {[%clk 0:00:12]} 63. Kf3 {[%clk 0:00:16]}  e2 {[%clk 0:00:12]} 64. Kf2 {[%clk 0:00:15]}  Ke4 {[%clk 0:00:12]} 65. Nf3 {[%clk 0:00:11]}  Kd3 {[%clk 0:00:10]} 66. Nh4 {[%clk 0:00:11]}  Kd2 {[%clk 0:00:09]} 67. Nf3+ {[%clk 0:00:07]}  Kd1 {[%clk 0:00:09]} 68. Kg3 {[%clk 0:00:07]}  Nd5 {[%clk 0:00:08]} 69. Kf2 {[%clk 0:00:06]}  Nf6 {[%clk 0:00:06]} 70. Ne1 {[%clk 0:00:06]}  Ne4+ {[%clk 0:00:06]} 71. Kg2 {[%clk 0:00:01]}  Kxe1 {[%clk 0:00:07]} 0-1


[Site "https://www.chess.com"]

[Event "Titled Tuesday Blitz December 06 Late 2022"]
[White "Martinez Alcantara, Jose Eduardo"]
[Black "Paravyan, David"]
[WhiteFideId "3805662"]
[BlackFideId "4194985"]
[WhiteElo "2707"]
[BlackElo "2551"]
[Result "1-0"]
[Round "05"]
[TimeControl "180+1"]
[Date "2022.12.06"]
[WhiteClock "0:00:02"]
[BlackClock "0:00:02"]

1. e4 {[%clk 0:03:00]}  e5 {[%clk 0:03:00]} 2. Nf3 {[%clk 0:02:59]}  Nf6 {[%clk 0:03:01]} 3. Nxe5 {[%clk 0:02:57]}  d6 {[%clk 0:03:01]} 4. Nf3 {[%clk 0:02:56]}  Nxe4 {[%clk 0:03:01]} 5. d4 {[%clk 0:02:52]}  d5 {[%clk 0:03:01]} 6. Bd3 {[%clk 0:02:52]}  Bd6 {[%clk 0:03:02]} 7. O-O {[%clk 0:02:53]}  O-O {[%clk 0:03:02]} 8. c4 {[%clk 0:02:54]}  c6 {[%clk 0:03:03]} 9. cxd5 {[%clk 0:02:52]}  cxd5 {[%clk 0:03:03]} 10. Nc3 {[%clk 0:02:53]}  Nxc3 {[%clk 0:03:02]} 11. bxc3 {[%clk 0:02:54]}  Bg4 {[%clk 0:03:03]} 12. Rb1 {[%clk 0:02:53]}  Nd7 {[%clk 0:03:03]} 13. h3 {[%clk 0:02:53]}  Bh5 {[%clk 0:03:03]} 14. Rxb7 {[%clk 0:02:48]}  Nb6 {[%clk 0:03:00]} 15. Ba6 {[%clk 0:02:34]}  Re8 {[%clk 0:02:26]} 16. Qd3 {[%clk 0:01:43]}  Bg6 {[%clk 0:02:01]} 17. Qb5 {[%clk 0:01:43]}  h6 {[%clk 0:01:51]} 18. Kh1 {[%clk 0:01:32]}  Bf5 {[%clk 0:01:29]} 19. a4 {[%clk 0:00:58]}  Bd7 {[%clk 0:01:28]} 20. Qd3 {[%clk 0:00:57]}  Bc6 {[%clk 0:01:03]} 21. a5 {[%clk 0:00:55]}  Nc4 {[%clk 0:01:04]} 22. Rb1 {[%clk 0:00:53]}  Qxa5 {[%clk 0:01:01]} 23. Bb7 {[%clk 0:00:52]}  Bxb7 {[%clk 0:00:54]} 24. Rxb7 {[%clk 0:00:53]}  Reb8 {[%clk 0:00:49]} 25. Rxb8+ {[%clk 0:00:45]}  Rxb8 {[%clk 0:00:50]} 26. Nh4 {[%clk 0:00:45]}  Bf8 {[%clk 0:00:40]} 27. Bxh6 {[%clk 0:00:40]}  Rb2 {[%clk 0:00:24]} 28. Qg3 {[%clk 0:00:28]}  Qb6 {[%clk 0:00:24]} 29. Bc1 {[%clk 0:00:22]}  Rb1 {[%clk 0:00:21]} 30. Nf5 {[%clk 0:00:22]}  Qg6 {[%clk 0:00:18]} 31. Qf4 {[%clk 0:00:16]}  Nd6 {[%clk 0:00:11]} 32. Ng3 {[%clk 0:00:15]}  Ne4 {[%clk 0:00:10]} 33. Ne2 {[%clk 0:00:12]}  Qa6 {[%clk 0:00:08]} 34. Re1 {[%clk 0:00:12]}  Qd3 {[%clk 0:00:07]} 35. Kg1 {[%clk 0:00:05]}  Bd6 {[%clk 0:00:07]} 36. Qf3 {[%clk 0:00:05]}  Qxf3 {[%clk 0:00:05]} 37. gxf3 {[%clk 0:00:06]}  Ng5 {[%clk 0:00:05]} 38. Kg2 {[%clk 0:00:05]}  Ne6 {[%clk 0:00:05]} 39. Bd2 {[%clk 0:00:03]}  Rb2 {[%clk 0:00:05]} 40. Rd1 {[%clk 0:00:03]}  a5 {[%clk 0:00:05]} 41. Kf1 {[%clk 0:00:02]}  a4 {[%clk 0:00:05]} 42. Be3 {[%clk 0:00:02]}  a3 {[%clk 0:00:06]} 43. Ra1 {[%clk 0:00:02]}  Rc2 {[%clk 0:00:02]} 44. Bc1 {[%clk 0:00:02]}  a2 {[%clk 0:00:02]} 45. Ke1 {[%clk 0:00:02]} 1-0


[Site "https://www.chess.com"]

[Event "Titled Tuesday Blitz December 06 Late 2022"]
[White "Martinez Reyes, Pedro Ramon"]
[Black "Curtis, John"]
[WhiteFideId "3901807"]
[BlackFideId "3200256"]
[WhiteElo "2354"]
[BlackElo "2203"]
[Result "1-0"]
[Round "05"]
[TimeControl "180+1"]
[Date "2022.12.07"]
[WhiteClock "0:01:20"]
[BlackClock "0:01:06"]

1. f4 {[%clk 0:03:00]}  d6 {[%clk 0:02:46]} 2. Nf3 {[%clk 0:02:59]}  Bg4 {[%clk 0:02:41]} 3. e4 {[%clk 0:02:49]}  e5 {[%clk 0:02:37]} 4. fxe5 {[%clk 0:02:46]}  dxe5 {[%clk 0:02:37]} 5. Bc4 {[%clk 0:02:47]}  Bxf3 {[%clk 0:02:34]} 6. Qxf3 {[%clk 0:02:45]}  Nf6 {[%clk 0:02:32]} 7. Qb3 {[%clk 0:02:42]}  Qe7 {[%clk 0:02:32]} 8. Qxb7 {[%clk 0:02:34]}  Qc5 {[%clk 0:02:20]} 9. Qxa8 {[%clk 0:02:06]}  Qb6 {[%clk 0:02:19]} 10. Nc3 {[%clk 0:01:59]}  c6 {[%clk 0:02:13]} 11. d3 {[%clk 0:01:39]}  Bb4 {[%clk 0:02:09]} 12. Ke2 {[%clk 0:01:36]}  Ng4 {[%clk 0:02:02]} 13. Rf1 {[%clk 0:01:35]}  O-O {[%clk 0:02:02]} 14. h3 {[%clk 0:01:29]}  Nf6 {[%clk 0:01:57]} 15. Be3 {[%clk 0:01:29]}  Bc5 {[%clk 0:01:23]} 16. Na4 {[%clk 0:01:28]}  Bxe3 {[%clk 0:01:22]} 17. Nxb6 {[%clk 0:01:28]}  Bxb6 {[%clk 0:01:23]} 18. Rxf6 {[%clk 0:01:24]}  gxf6 {[%clk 0:01:19]} 19. Rf1 {[%clk 0:01:25]}  Kg7 {[%clk 0:01:15]} 20. Qb7 {[%clk 0:01:25]}  h6 {[%clk 0:01:10]} 21. a4 {[%clk 0:01:25]}  Bc5 {[%clk 0:01:08]} 22. b4 {[%clk 0:01:24]}  Bd6 {[%clk 0:01:08]} 23. c3 {[%clk 0:01:23]}  a5 {[%clk 0:01:06]} 24. bxa5 {[%clk 0:01:22]}  Ba3 {[%clk 0:01:05]} 25. a6 {[%clk 0:01:22]}  Nxa6 {[%clk 0:01:05]} 26. Bxa6 {[%clk 0:01:22]}  Bb2 {[%clk 0:01:06]} 27. Qxb2 {[%clk 0:01:20]} 1-0


[Site "https://www.chess.com"]

[Event "Titled Tuesday Blitz December 06 Late 2022"]
[White "Matinian, Nikita"]
[Black "Dardha, Daniel"]
[WhiteFideId "24129100"]
[BlackFideId "240990"]
[WhiteElo "2422"]
[BlackElo "2528"]
[Result "0-1"]
[Round "05"]
[TimeControl "180+1"]
[Date "2022.12.06"]
[WhiteClock "0:00:03"]
[BlackClock "0:00:06"]

1. e4 {[%clk 0:02:58]}  c6 {[%clk 0:02:57]} 2. d4 {[%clk 0:02:57]}  d5 {[%clk 0:02:56]} 3. e5 {[%clk 0:02:58]}  Bf5 {[%clk 0:02:56]} 4. Nf3 {[%clk 0:02:58]}  e6 {[%clk 0:02:56]} 5. Be2 {[%clk 0:02:58]}  c5 {[%clk 0:02:56]} 6. Be3 {[%clk 0:02:57]}  cxd4 {[%clk 0:02:56]} 7. Nxd4 {[%clk 0:02:56]}  Ne7 {[%clk 0:02:56]} 8. Nd2 {[%clk 0:02:55]}  Nbc6 {[%clk 0:02:56]} 9. N2f3 {[%clk 0:02:55]}  h6 {[%clk 0:02:56]} 10. O-O {[%clk 0:02:53]}  Bh7 {[%clk 0:02:54]} 11. c4 {[%clk 0:02:51]}  dxc4 {[%clk 0:02:51]} 12. Bxc4 {[%clk 0:02:52]}  a6 {[%clk 0:02:50]} 13. Rc1 {[%clk 0:02:49]}  Rc8 {[%clk 0:02:47]} 14. Qb3 {[%clk 0:02:28]}  b5 {[%clk 0:02:34]} 15. Nxb5 {[%clk 0:02:16]}  axb5 {[%clk 0:02:32]} 16. Bxb5 {[%clk 0:02:17]}  Be4 {[%clk 0:02:30]} 17. Rfd1 {[%clk 0:02:14]}  Bd5 {[%clk 0:02:28]} 18. Qa4 {[%clk 0:02:04]}  Ra8 {[%clk 0:02:00]} 19. Rxd5 {[%clk 0:02:03]}  Qc8 {[%clk 0:01:27]} 20. Bxc6+ {[%clk 0:01:58]}  Qxc6 {[%clk 0:01:18]} 21. Rxc6 {[%clk 0:01:59]}  Rxa4 {[%clk 0:01:17]} 22. Rd4 {[%clk 0:01:30]}  Rxd4 {[%clk 0:01:14]} 23. Nxd4 {[%clk 0:01:31]}  Nxc6 {[%clk 0:01:14]} 24. Nxc6 {[%clk 0:01:30]}  Kd7 {[%clk 0:01:15]} 25. Na5 {[%clk 0:01:22]}  Be7 {[%clk 0:01:08]} 26. Nc4 {[%clk 0:01:22]}  Kc6 {[%clk 0:01:08]} 27. Kf1 {[%clk 0:01:18]}  Ra8 {[%clk 0:01:08]} 28. a3 {[%clk 0:01:14]}  Bc5 {[%clk 0:01:05]} 29. Ke2 {[%clk 0:01:09]}  Kd5 {[%clk 0:00:59]} 30. Kd3 {[%clk 0:01:01]}  Bxe3 {[%clk 0:00:57]} 31. fxe3 {[%clk 0:01:02]}  Kc5 {[%clk 0:00:55]} 32. Kc3 {[%clk 0:00:57]}  f5 {[%clk 0:00:54]} 33. b4+ {[%clk 0:00:49]}  Kc6 {[%clk 0:00:51]} 34. Kb3 {[%clk 0:00:45]}  Rd8 {[%clk 0:00:50]} 35. Nd6 {[%clk 0:00:45]}  Kd5 {[%clk 0:00:48]} 36. a4 {[%clk 0:00:44]}  Rb8 {[%clk 0:00:30]} 37. Nc4 {[%clk 0:00:40]}  g5 {[%clk 0:00:30]} 38. a5 {[%clk 0:00:37]}  f4 {[%clk 0:00:29]} 39. exf4 {[%clk 0:00:35]}  gxf4 {[%clk 0:00:30]} 40. Nb6+ {[%clk 0:00:30]}  Kc6 {[%clk 0:00:29]} 41. Kc4 {[%clk 0:00:29]}  Rg8 {[%clk 0:00:28]} 42. b5+ {[%clk 0:00:29]}  Kc7 {[%clk 0:00:26]} 43. Na4 {[%clk 0:00:20]}  Rxg2 {[%clk 0:00:25]} 44. Nc5 {[%clk 0:00:19]}  f3 {[%clk 0:00:24]} 45. b6+ {[%clk 0:00:18]}  Kc6 {[%clk 0:00:21]} 46. b7 {[%clk 0:00:19]}  Rb2 {[%clk 0:00:14]} 47. a6 {[%clk 0:00:14]}  f2 {[%clk 0:00:13]} 48. Kc3 {[%clk 0:00:10]}  f1=Q {[%clk 0:00:08]} 49. Kxb2 {[%clk 0:00:10]}  Qb5+ {[%clk 0:00:07]} 50. Nb3 {[%clk 0:00:10]}  Kc7 {[%clk 0:00:06]} 51. Kc3 {[%clk 0:00:09]}  Qxa6 {[%clk 0:00:06]} 52. Nc5 {[%clk 0:00:09]}  Qc6 {[%clk 0:00:06]} 53. Kb4 {[%clk 0:00:09]}  Qd5 {[%clk 0:00:06]} 54. h3 {[%clk 0:00:04]}  Qd4+ {[%clk 0:00:06]} 55. Kb5 {[%clk 0:00:03]}  Qxe5 {[%clk 0:00:06]} 56. h4 {[%clk 0:00:03]}  h5 {[%clk 0:00:06]} 0-1


[Site "https://www.chess.com"]

[Event "Titled Tuesday Blitz December 06 Late 2022"]
[White "Moral Garcia, Serafin"]
[Black "Mikaelyan, Arman"]
[WhiteFideId "2201925"]
[BlackFideId "13304852"]
[WhiteElo "2259"]
[BlackElo "2456"]
[Result "1-0"]
[Round "05"]
[TimeControl "180+1"]
[Date "2022.12.07"]
[WhiteClock "0:00:06"]
[BlackClock "0:00:02"]

1. c4 {[%clk 0:03:00]}  Nf6 {[%clk 0:03:00]} 2. Nc3 {[%clk 0:03:00]}  c5 {[%clk 0:03:00]} 3. g3 {[%clk 0:02:56]}  g6 {[%clk 0:02:59]} 4. Bg2 {[%clk 0:02:56]}  Bg7 {[%clk 0:03:00]} 5. a3 {[%clk 0:02:55]}  Nc6 {[%clk 0:02:57]} 6. Rb1 {[%clk 0:02:55]}  O-O {[%clk 0:02:52]} 7. b4 {[%clk 0:02:54]}  d6 {[%clk 0:02:44]} 8. d3 {[%clk 0:02:54]}  cxb4 {[%clk 0:02:20]} 9. axb4 {[%clk 0:02:52]}  Bd7 {[%clk 0:02:20]} 10. e3 {[%clk 0:02:47]}  Bf5 {[%clk 0:02:07]} 11. Nge2 {[%clk 0:02:43]}  Ne5 {[%clk 0:02:04]} 12. e4 {[%clk 0:02:42]}  Bg4 {[%clk 0:02:05]} 13. O-O {[%clk 0:02:38]}  Qd7 {[%clk 0:01:44]} 14. f3 {[%clk 0:02:34]}  Bh3 {[%clk 0:01:45]} 15. Be3 {[%clk 0:02:28]}  Bxg2 {[%clk 0:01:44]} 16. Kxg2 {[%clk 0:02:28]}  a6 {[%clk 0:01:42]} 17. b5 {[%clk 0:02:21]}  axb5 {[%clk 0:01:41]} 18. Rxb5 {[%clk 0:02:20]}  Ra3 {[%clk 0:01:36]} 19. Qc2 {[%clk 0:02:19]}  Rb8 {[%clk 0:01:00]} 20. Rfb1 {[%clk 0:02:18]}  Nc6 {[%clk 0:00:58]} 21. Qb2 {[%clk 0:02:10]}  Raa8 {[%clk 0:00:50]} 22. Rxb7 {[%clk 0:02:08]}  Rxb7 {[%clk 0:00:51]} 23. Qxb7 {[%clk 0:02:08]}  Qxb7 {[%clk 0:00:52]} 24. Rxb7 {[%clk 0:02:07]}  Bf8 {[%clk 0:00:51]} 25. Kf2 {[%clk 0:02:05]}  Ne5 {[%clk 0:00:50]} 26. Nc1 {[%clk 0:01:55]}  Ra3 {[%clk 0:00:51]} 27. Bd2 {[%clk 0:01:44]}  Nfd7 {[%clk 0:00:46]} 28. Ke2 {[%clk 0:01:39]}  Nc5 {[%clk 0:00:36]} 29. Rb8 {[%clk 0:01:38]}  Nc6 {[%clk 0:00:32]} 30. Rc8 {[%clk 0:01:23]}  Nd4+ {[%clk 0:00:32]} 31. Kd1 {[%clk 0:01:23]}  Kg7 {[%clk 0:00:29]} 32. f4 {[%clk 0:01:03]}  Ra1 {[%clk 0:00:28]} 33. Ne2 {[%clk 0:01:01]}  e5 {[%clk 0:00:23]} 34. Nxd4 {[%clk 0:00:58]}  exd4 {[%clk 0:00:24]} 35. Kc2 {[%clk 0:00:54]}  h5 {[%clk 0:00:20]} 36. Bb4 {[%clk 0:00:50]}  Ne6 {[%clk 0:00:18]} 37. Kb2 {[%clk 0:00:46]}  Ra4 {[%clk 0:00:18]} 38. Na2 {[%clk 0:00:42]}  Nc5 {[%clk 0:00:15]} 39. Bxc5 {[%clk 0:00:42]}  dxc5 {[%clk 0:00:16]} 40. Nc1 {[%clk 0:00:37]}  h4 {[%clk 0:00:16]} 41. Nb3 {[%clk 0:00:36]}  Rb4 {[%clk 0:00:15]} 42. Ka3 {[%clk 0:00:35]}  h3 {[%clk 0:00:14]} 43. Ra8 {[%clk 0:00:30]}  Rb7 {[%clk 0:00:14]} 44. Ra5 {[%clk 0:00:30]}  f5 {[%clk 0:00:14]} 45. e5 {[%clk 0:00:29]}  g5 {[%clk 0:00:14]} 46. Rb5 {[%clk 0:00:24]}  Ra7+ {[%clk 0:00:13]} 47. Kb2 {[%clk 0:00:24]}  gxf4 {[%clk 0:00:13]} 48. gxf4 {[%clk 0:00:25]}  Rc7 {[%clk 0:00:13]} 49. Rb6 {[%clk 0:00:24]}  Kh7 {[%clk 0:00:09]} 50. Rf6 {[%clk 0:00:22]}  Bh6 {[%clk 0:00:09]} 51. Rxf5 {[%clk 0:00:22]}  Rg7 {[%clk 0:00:09]} 52. Rh5 {[%clk 0:00:21]}  Rg2+ {[%clk 0:00:09]} 53. Ka3 {[%clk 0:00:21]}  Rxh2 {[%clk 0:00:10]} 54. Nxc5 {[%clk 0:00:19]}  Kg6 {[%clk 0:00:10]} 55. Rh4 {[%clk 0:00:18]}  Rh1 {[%clk 0:00:09]} 56. Ne4 {[%clk 0:00:15]}  Bf8+ {[%clk 0:00:08]} 57. Ka4 {[%clk 0:00:14]}  Be7 {[%clk 0:00:09]} 58. Rg4+ {[%clk 0:00:14]}  Kf5 {[%clk 0:00:09]} 59. Rg7 {[%clk 0:00:13]}  Kxf4 {[%clk 0:00:06]} 60. Rxe7 {[%clk 0:00:12]}  Ra1+ {[%clk 0:00:06]} 61. Kb5 {[%clk 0:00:11]}  h2 {[%clk 0:00:07]} 62. Rh7 {[%clk 0:00:11]}  h1=Q {[%clk 0:00:07]} 63. Rxh1 {[%clk 0:00:12]}  Rxh1 {[%clk 0:00:07]} 64. e6 {[%clk 0:00:12]}  Rh7 {[%clk 0:00:05]} 65. Nc5 {[%clk 0:00:13]}  Ke5 {[%clk 0:00:04]} 66. Kc6 {[%clk 0:00:13]}  Re7 {[%clk 0:00:05]} 67. Kb6 {[%clk 0:00:12]}  Kd6 {[%clk 0:00:04]} 68. Kb5 {[%clk 0:00:13]}  Rc7 {[%clk 0:00:04]} 69. Nb3 {[%clk 0:00:10]}  Rb7+ {[%clk 0:00:03]} 70. Ka4 {[%clk 0:00:11]}  Ra7+ {[%clk 0:00:03]} 71. Kb4 {[%clk 0:00:11]}  Kxe6 {[%clk 0:00:03]} 72. Nxd4+ {[%clk 0:00:10]}  Kd7 {[%clk 0:00:03]} 73. Nb5 {[%clk 0:00:11]}  Ra1 {[%clk 0:00:03]} 74. d4 {[%clk 0:00:11]}  Rb1+ {[%clk 0:00:04]} 75. Kc5 {[%clk 0:00:12]}  Rh1 {[%clk 0:00:03]} 76. d5 {[%clk 0:00:12]}  Rh5 {[%clk 0:00:04]} 77. Nd4 {[%clk 0:00:12]}  Rh4 {[%clk 0:00:04]} 78. Nc6 {[%clk 0:00:12]}  Rh5 {[%clk 0:00:04]} 79. Nb4 {[%clk 0:00:12]}  Rg5 {[%clk 0:00:04]} 80. Kb5 {[%clk 0:00:12]}  Rg4 {[%clk 0:00:03]} 81. c5 {[%clk 0:00:13]}  Rg5 {[%clk 0:00:02]} 82. Kc4 {[%clk 0:00:12]}  Rg4+ {[%clk 0:00:02]} 83. Kc3 {[%clk 0:00:13]}  Rg5 {[%clk 0:00:03]} 84. Kc4 {[%clk 0:00:09]}  Rg4+ {[%clk 0:00:04]} 85. Kb5 {[%clk 0:00:10]}  Rg5 {[%clk 0:00:04]} 86. d6 {[%clk 0:00:10]}  Rg4 {[%clk 0:00:03]} 87. Nd5 {[%clk 0:00:11]}  Rd4 {[%clk 0:00:02]} 88. Nb6+ {[%clk 0:00:11]}  Kd8 {[%clk 0:00:02]} 89. Kc6 {[%clk 0:00:11]}  Rd1 {[%clk 0:00:02]} 90. Nc4 {[%clk 0:00:09]}  Ra1 {[%clk 0:00:02]} 91. Kb7 {[%clk 0:00:09]}  Rb1+ {[%clk 0:00:02]} 92. Nb6 {[%clk 0:00:09]}  Rd1 {[%clk 0:00:02]} 93. c6 {[%clk 0:00:09]}  Rxd6 {[%clk 0:00:01]} 94. c7+ {[%clk 0:00:09]}  Ke7 {[%clk 0:00:02]} 95. c8=Q {[%clk 0:00:10]}  Rd8 {[%clk 0:00:03]} 96. Qc7+ {[%clk 0:00:10]}  Ke8 {[%clk 0:00:03]} 97. Kc6 {[%clk 0:00:10]}  Rd1 {[%clk 0:00:01]} 98. Qe5+ {[%clk 0:00:08]}  Kf7 {[%clk 0:00:02]} 99. Qf4+ {[%clk 0:00:08]}  Ke8 {[%clk 0:00:02]} 100. Qe4+ {[%clk 0:00:08]}  Kd8 {[%clk 0:00:03]} 101. Qh4+ {[%clk 0:00:06]}  Ke8 {[%clk 0:00:02]} 102. Qh5+ {[%clk 0:00:06]}  Ke7 {[%clk 0:00:02]} 103. Qxd1 {[%clk 0:00:06]} 1-0


[Site "https://www.chess.com"]